Cogmind - Beta 10.1 @@@ ROGUE MODE // 2020.10.06 @ 18:28:51 Player: Aprion27 Result: Destroyed by S-10 Pest with Light Assault Rifle Performance ------------- Evolutions (1) 500 Regions Visited (3) 600 Robots Destroyed (22) 110 Value Destroyed (364) 364 Prototype IDs (0) 0 Alien Tech Used (0) 0 Bonus (0) 0 TOTAL SCORE: 1574 Bonus ------- None Cogmind --------- Core Integrity 0/400 Matter 166/300 Energy 99/100 System Corruption 0% Temperature Cool (0) Movement Core (50) Location -9/Materials Parts ------- > --- POWER (1) -------- (None) > --- PROPULSION (2) --- (None) > --- UTILITY (3) ------ (None) > --- WEAPON (3) ------- (None) > --- INVENTORY (4) ---- Experimental Sensor Array Peak State ------------ > --- POWER ------------ Light Ion Engine > --- PROPULSION ------- Light Treads Light Treads > --- UTILITY ---------- Advanced Sensor Array Long-range Tractor Beam > --- WEAPON ----------- Light Assault Rifle Heavy Assault Rifle Heavy Assault Rifle > --- INVENTORY -------- Experimental Sensor Array Mining Laser [Rating: 14] Favorites ----------- Power Light Ion Engine Engine Light Ion Engine Propulsion Light Treads Treads Light Treads Utility Advanced Sensor Array Device Advanced Sensor Array Weapon Heavy Assault Rifle Ballistic Gun Heavy Assault Rifle Special Weapon Mining Laser Build | -11 -10 -10 -9 ------- Run | Scr Mat Min Mat Slots Evolved 2 | . . . 2 Power . | . . . . Propulsion . | . . . . Utility 1 | . . . 1 Weapon 1 | . . . 1 Parts Attached 17 | 3 3 2 9 Power 2 | . 1 . 1 Engine 2 | . 1 . 1 Core . | . . . . Reactor . | . . . . Propulsion 5 | 2 . . 3 Treads 5 | 2 . . 3 Leg . | . . . . Wheel . | . . . . Hover . | . . . . Flight . | . . . . Utility 2 | . . . 2 Device 2 | . . . 2 Storage . | . . . . Processor . | . . . . Hackware . | . . . . Protection . | . . . . Artifact . | . . . . Weapon 8 | 1 2 2 3 Energy Gun . | . . . . Energy Cannon . | . . . . Ballistic Gun 6 | 1 2 1 2 Ballistic Cannon . | . . . . Launcher . | . . . . Special Weapon 2 | . . 1 1 Impact Weapon . | . . . . Slashing Weapon . | . . . . Piercing Weapon . | . . . . Special Melee Weapon . | . . . . Unidentified Prototypes . | . . . . Parts Lost 13 | . . . 13 Power 2 | . . . 2 Propulsion 4 | . . . 4 Utility 2 | . . . 2 Weapon 5 | . . . 5 Highest Loss Streak 8 | . . . 8 Average Slot Usage (%) 64 | . 59 71 56 Engine 9 | . 5 14 3 Treads 25 | . 28 28 20 Device 2 | . . . 7 Ballistic Gun 19 | . 25 15 24 Special Weapon 6 | . . 12 . Naked Turns 2 | . . . 2 Heaviest Build 12 | 1 9 9 12 Greatest Support 40 | 40 40 40 40 Greatest Overweight (x) 2 | . . . 2 Average Overweight (x) . | . . . . Largest Inventory Capacity 4 | 4 4 4 4 Average Capacity 4 | 4 4 4 4 Most Carried 3 | . 2 3 3 Average Carried 2 | . 1 2 2 Final Capacity 4 | 4 4 4 4 Final Carried 3 | . 2 3 1 Class Distribution -------------------- 76% | Mutant 19% | Skirmisher 3% | Gunner Dominant Class ---------------- Mutant | -10/Materials Mutant | -10/Mines Skirmisher | -9/Materials Resources | -11 -10 -10 -9 ----------- Run | Scr Mat Min Mat Matter Collected 503 | 191 18 108 186 Remotely 39 | . . . 39 Salvage Created 611 | . 87 79 445 Parts 41 | . 7 2 32 Haulers Intercepted 1 | . . . 1 Recyclers Shooed 2 | . . . 2 Parts Field Recycled . | . . . . Retrieved Matter . | . . . . Parts Self-Destructed . | . . . . Prevented . | . . . . Kills | -11 -10 -10 -9 ------- Run | Scr Mat Min Mat Combat Hostiles Destroyed 16 | . 2 2 12 Guns 15 | . 2 2 11 Cannons 1 | . . . 1 Classes Destroyed 8 | . 2 1 5 Worker 1 | . . . 1 Builder 1 | . . . 1 Hauler 1 | . . . 1 Recycler 2 | . 1 . 1 Watcher 1 | . . . 1 Swarmer 10 | . 2 . 8 Grunt 5 | . . 2 3 Sentry 1 | . . . 1 Best Kill Streak 10 | . 3 2 10 Combat Bots Only 4 | . 2 2 4 Max Kills in Single Turn 2 | . 2 1 2 Gunslinging 1 | . 1 . . Exploded . | . . . . Melee . | . . . . Uniques/NPCs Destroyed . | . . . . Combat | -11 -10 -10 -9 -------- Run | Scr Mat Min Mat Damage Taken 1511 | . 78 60 1373 Core 411 | . 9 . 402 Absorbed by Shields . | . . . . Core Remaining (%) 98 | 100 . 96 . Volleys Fired 56 | . 7 8 41 Largest 3 | . 2 2 3 Hottest 123 | . 46 123 100 Shots Fired 143 | . 14 16 113 Gun 140 | . 14 14 112 Cannon . | . . . . Launcher . | . . . . Special 3 | . . 2 1 Kinetic 140 | . 14 14 112 Thermal 3 | . . 2 1 Explosive . | . . . . Electromagnetic . | . . . . Robot Hit Streak 7 | . 4 5 7 Robot Miss Streak 6 | . 3 5 6 Penetration Max . | . . . . Secondary Targets 7 | . 1 1 5 Max Gunslinging Chain 1 | . 1 1 1 Shots Hit Robots 74 | . 7 10 57 Core Hits 31 | . 3 4 24 Critical Hits 2 | . . 1 1 Critical Kills 1 | . . 1 . Critical Parts Destroyed 1 | . . . 1 Melee Attacks . | . . . . Impact . | . . . . Slashing . | . . . . Piercing . | . . . . Sneak Attacks . | . . . . Combat Hostiles . | . . . . Follow-up Attacks . | . . . . Damage Inflicted 1064 | . 110 176 778 Guns 1016 | . 110 152 754 Cannons . | . . . . Explosions . | . . . . Melee . | . . . . Ramming . | . . . . Kinetic 1016 | . 110 152 754 Thermal 48 | . . 24 24 Explosive . | . . . . Electromagnetic . | . . . . Impact . | . . . . Slashing . | . . . . Piercing . | . . . . Highest Corruption . | . . . . Average Corruption . | . . . . Corruption Purged . | . . . . Overload Shots . | . . . . Overflow Damage . | . . . . Projectiles . | . . . . Explosions . | . . . . Melee . | . . . . Knockbacks . | . . . . Impact . | . . . . Kinetic . | . . . . Secondary . | . . . . Self-Inflicted Damage . | . . . . Shots . | . . . . Rammed . | . . . . Targets Rammed . | . . . . Kicked . | . . . . Crushed . | . . . . Highest Temperature 32 | . . 20 32 Average Temperature 10 | . . 8 12 Received Heat Transfer 108 | . . 36 72 Siege Activations . | . . . . Robots Corrupted . | . . . . Combat Hostiles . | . . . . Parts Fried . | . . . . Impact Corruptions . | . . . . Robots Melted . | . . . . Combat Hostiles . | . . . . Parts Melted . | . . . . Heat Transferred 100 | . . 50 50 Parts Sabotaged . | . . . . Parts Stolen . | . . . . Parts Stripped . | . . . . Power Chain Reactions . | . . . . Missiles Intercepted . | . . . . Alert | -11 -10 -10 -9 ------- Run | Scr Mat Min Mat Peak Influence 248 | . 59 50 248 Initial 22 | . . 22 19 Average 61 | . 28 20 134 Maximum Alert Level 1 | . . . 1 Low Security (%) 90 | 100 100 100 73 Level 1 9 | . . . 26 Level 2 . | . . . . Level 3 . | . . . . Level 4 . | . . . . Level 5 . | . . . . High Security . | . . . . Max Security . | . . . . Squads Dispatched 2 | . 1 . 1 Investigation . | . . . . Extermination . | . . . . Reinforcement 2 | . 1 . 1 Assault . | . . . . Garrison . | . . . . Intercept . | . . . . Construction Impeded 1 | . . . 1 Haulers Reinforced . | . . . . Stealth | -11 -10 -10 -9 --------- Run | Scr Mat Min Mat Distress Signals 1 | . 1 . . Communications Jammed . | . . . . Distress Signals . | . . . . Times Spotted 27 | . 4 2 21 Peak Tracking Total 12 | . 3 2 12 Tactical Retreats 2 | . 1 . 1 Traps | -11 -10 -10 -9 ------- Run | Scr Mat Min Mat Traps Triggered . | . . . . Indirectly . | . . . . Trap Hack Attempts . | . . . . Triggered . | . . . . Disarmed . | . . . . Reprogrammed . | . . . . Reused . | . . . . Traps Extracted . | . . . . Installed . | . . . . Triggered . | . . . . Machines | -11 -10 -10 -9 ---------- Run | Scr Mat Min Mat Machines Disabled . | . . . . Max in Single Turn . | . . . . Machines Sabotaged . | . . . . Garrisons Compromised . | . . . . Overloaded Fab Kills . | . . . . Fab Network Shutdowns . | . . . . Hacking | -11 -10 -10 -9 --------- Run | Scr Mat Min Mat Machines Accessed 1 | . 1 . . Terminals 1 | . 1 . . Fabricators . | . . . . Repair Stations . | . . . . Recycling Units . | . . . . Scanalyzers . | . . . . Garrison Access . | . . . . Total Hacks 1 | . 1 . . Successful 1 | . 1 . . Failed . | . . . . Catastrophic . | . . . . Database Lockouts . | . . . . Manual . | . . . . Terminals 1 | . 1 . . Fabricators . | . . . . Repair Stations . | . . . . Recycling Units . | . . . . Scanalyzers . | . . . . Garrison Access . | . . . . Terminal Hacks 1 | . 1 . . Hauler Manifests 1 | . 1 . . Fabricator Hacks . | . . . . Repair Station Hacks . | . . . . Recycling Unit Hacks . | . . . . Scanalyzer . | . . . . Garrison Access Hacks . | . . . . Unauthorized Hacks . | . . . . Terminals . | . . . . Fabricators . | . . . . Repair Stations . | . . . . Recycling Units . | . . . . Scanalyzers . | . . . . Garrison Access . | . . . . Data Cores Recovered . | . . . . Used . | . . . . Hacking Detections 1 | . 1 . . Full Trace Events . | . . . . Feedback Events . | . . . . Feedback Blocked . | . . . . Robot Schematics Acquired . | . . . . Robots Built . | . . . . Matter . | . . . . Time . | . . . . Total Robot Build Rating . | . . . . Part Schematics Acquired . | . . . . Parts Built . | . . . . Matter . | . . . . Time . | . . . . Total Part Build Rating . | . . . . Parts Repaired . | . . . . Time . | . . . . Parts Recycled . | . . . . Recycled Matter . | . . . . Retrieved Matter . | . . . . Retrieved Components . | . . . . Parts Scanalyzed . | . . . . Part Schematics Acquired . | . . . . Parts Damaged . | . . . . Bothacking | -11 -10 -10 -9 ------------ Run | Scr Mat Min Mat Used RIF Installer . | . . . . Robots Hacked . | . . . . Non-combat . | . . . . Combat . | . . . . Robot Hacks Applied . | . . . . Relay Couplers Released . | . . . . Robots Rewired . | . . . . Allies Hacked . | . . . . Hacks Repelled . | . . . . Allies | -11 -10 -10 -9 -------- Run | Scr Mat Min Mat Total Allies . | . . . . Largest Group . | . . . . Highest-Rated Group . | . . . . Highest-Rated Ally . | . . . . Total Orders . | . . . . Ally Attacks . | . . . . Total Damage . | . . . . Kills . | . . . . Allies Corrupted . | . . . . Allies Melted . | . . . . Intel | -11 -10 -10 -9 ------- Run | Scr Mat Min Mat Robot Analysis Total . | . . . . Derelict Logs Recovered 2 | . . 2 . Drone Launches . | . . . . Drone Recoveries . | . . . . Exploration | -11 -10 -10 -9 ------------- Run | Scr Mat Min Mat Turns Passed 1056 | 53 111 512 380 Spaces Moved 547 | 38 53 301 155 Core 14 | 10 . . 4 Treads 533 | 28 53 301 151 Legs . | . . . . Wheels . | . . . . Hover . | . . . . Flight . | . . . . Fastest Speed 50 | 50 160 160 50 Average Speed 157 | 131 160 160 157 Slowest Speed 160 | 160 160 160 160 Overloaded Moves . | . . . . Propulsion Burnouts . | . . . . Robots Hopped . | . . . . Cave-ins Triggered . | . . . . Exploration Rate (%) 21 | 2 15 55 13 Regions Visited 3 Branch Regions 1 Pre-discovered Areas . | . . . . Known Exits Taken . | . . . . Unknown Exits Taken 3 | 1 1 1 . Scrap Searched 1 | . . 1 . Spaces Dug . | . . . . Terrain Destroyed 1 | . . 1 . Melee . | . . . . Projectile 1 | . . 1 . AOE . | . . . . Terrain Rammed . | . . . . Walls Destroyed . | . . . . Machines Disabled . | . . . . Actions | -11 -10 -10 -9 --------- Run | Scr Mat Min Mat Total 624 | 40 64 312 208 Wait 3 | . . . 3 Move 544 | 37 52 300 155 Hop . | . . . . Pick Up 2 | . 1 1 . Fast Attach 11 | 3 3 . 5 Attach 4 | . . 1 3 Detach 2 | . 1 1 . Swap 2 | . . 1 1 Drop . | . . . . Fire 56 | . 7 8 41 Melee . | . . . . Ram . | . . . . Kick . | . . . . Crush . | . . . . Escape Stasis . | . . . . Rewire . | . . . . Trap . | . . . . Miscellaneous . | . . . . Route ------- -11/Scrapyard -10/Materials -10/Mines -9/Materials (discovered 1 exit: Mat) History --------- Turn | Location | Event 7 | -11/Scrapyard | Discovered new exit (range 16) 54 | -11/Scrapyard | Entered Materials 116 | -10/Materials | Discovered new exit (range 9) 165 | -10/Materials | Entered Mines 245 | -10/Mines | Found a damaged Exp. Sensor Array with a note attached 250 | -10/Mines | Found Prototype Device 280 | -10/Mines | Learned 2 Materials zone layouts 301 | -10/Mines | Build established: Mutant 661 | -10/Mines | Discovered new exit (range 10) 677 | -10/Mines | Entered Materials 677 | -9/Materials | Evolved 2 slots: Utility x1, Weapon x1 678 | -9/Materials | Identified exit to Materials 965 | -9/Materials | Core integrity fell below 50% 1031 | -9/Materials | Lost 8 parts (1p2n1u4w) 1046 | -9/Materials | Core integrity fell below 20% 1057 | -9/Materials | Destroyed by S-10 Pest with Light Assault Rifle Last Messages --------------- 00926_ S-10 Pest destroyed. 00929_ Acquired 42 matter. 00940_ Acquired Ion Engine. 00943_ Acquired Lgt. Assault Rifle. 00956_ Adv. Sensor Array destroyed. 00956_ Critical hit. 00956_ Lgt. Treads destroyed. 00957_ Hvy. Assault Rifle destroyed. 00960_ S-10 Pest destroyed. 00960_ Lgt. Treads destroyed. 00961_ Lgt. Assault Rifle destroyed. 00963_ Acquired Lgt. Treads. 00976_ S-10 Pest destroyed. 00980_ Lgt. Assault Rifle destroyed. 00982_ S-10 Pest destroyed. 00996_ Ion Engine destroyed. 01000_ Mining Laser destroyed. 01032_ Lgt. Treads destroyed. 01051_ S-10 Pest destroyed. 01055_ Lgt. Treads destroyed. Map ----- +----------------------------------------------------+ | ??????????????????????????? | | ??????????????????????????? | | ??????????????????????????? | | ??????????????????????????? | | ??????????????????????????? | | ??????????????????????????? | | ??????????????????????????? | | ??????????????????????????? | | ??????????????????????????? | | ??????????????????????????? | | ??????????????????????????? | | ??????????????????????????? | | ??????????????????????????? | | ??????????????????????????? | | ??????????????????????????? | | ??????????????????????????? | | ??????????????????????????? | | ??????????????????????????? | | ??????????????????????????? | | ?########?????????????????? | | ?# !g !#?????????????????? | | ?# =g ################### | | ?#=s""" + | | ?# s""" ################### | | ?# s"""Y#?????????????????? | | ?#@ #?????????????????? | | ?########?????????????????? | | ??????????????????????????? | | ??????????????????????????? | | ??????????????????????????? | | ??????????????????????????? | | ??????????????????????????? | | ??????????????????????????? | | | | | | | | | | | | | | | | | | | | | | | | | | | | | | | | | | | +----------------------------------------------------+ Best States ------------- Heat Dissipation 28 Energy Generation 10 Energy Capacity 250 Matter Stores 300 Matter Capacity 300 Sight Range 16 Robot Scan Range 16 Terrain Scan Density 10 Evasion (%) 40 Recoil Reduction 2 Item Schematics ----------------- None Robot Schematics ------------------ None Fabricated ------------ Nothing Alien Tech Used ----------------- None Achievements -------------- None Challenges ------------ None Game ------ Seed IntegrationImpactMatrix Manual? 0 Play Time 00:12:05 Cumulative 73.1 hours Start 2020.10.06 @ 18:20:03 End 2020.10.06 @ 18:28:51 Sessions 1 Manual Loads 0 Difficulty Rogue Special Mode None Game No. 49 Rogue 49 Adventurer 0 Explorer 0 Win Type - Total 1 Types 1/0/0/0/0/0/0/0/0 Lore% 24 Gallery% 47 Achievement% 33 Wizard Run 0 Options --------- ASCII 0 Keyboard 1 Movement Numpad Keybinds 0 Fullscreen 1 Font 36/Smallcaps Map View 76x50 Tactical HUD 1 Map Filters NONE Filters NONE Steam 1 RUN: ca05edd2-3bd2-4d2a-89c0-ec7f84fa08df